bitfinex/quotes_ETHUSD_20240722
["timestamp","ask_amount","ask_price","bid_price","bid_amount"]
[1721665336222,4.10067822,3463.6,3463.1,2.88756]
[1721665336624,1.21350822,3463.6,3463.2,2.88749]
[1721665336857,1.21350822,3463.7,3463.3,2.88736]
[1721665337157,1.21350822,3463.9,3463.3,2.88735]
[1721665337519,4.10044822,3463.9,3463.2,2.8875]
[1721665337963,1.21350822,3463.9,3463.5,2.88721]
[1721665338170,1.21350822,3463.9,3463.2,2.88744]
[1721665338339,1.21350822,3463.9,3463.4,2.88727]
[1721665338542,3.64340822,3464.0,3463.7,2.88701]
[1721665338728,1.21350822,3464.2,3463.7,2.88701]
[1721665339073,6.51839822,3464.3,3463.8,2.88699]
[1721665339368,2.88675,3464.2,3463.6,2.88709]
[1721665339732,2.88675,3464.2,3463.6,5.77421]
[1721665339927,2.88675,3464.2,3463.7,2.88708]
[1721665340123,4.10024822,3464.2,3463.5,2.88719]
[1721665340964,2.88684,3464.0,3463.2,2.8875]
[1721665341187,2.302,3463.9,3463.3,3.0]
[1721665341367,2.88705,3463.8,3463.3,3.0]
[1721665341528,2.88705,3463.8,3462.8,1.1766788]
[1721665341529,2.453,3463.7,3462.8,1.1766788]
[1721665341735,2.88755,3463.2,3462.6,2.88795]
[1721665342178,2.453,3463.3,3462.6,2.88795]
[1721665342179,2.88759,3463.1,3462.6,2.88795]
[1721665342703,5.34049,3463.3,3462.7,2.8879]
[1721665342900,5.34049,3463.3,3462.3,0.288822]
[1721665342901,3.62290822,3463.4,3462.8,2.88778]
[1721665343068,2.453,3463.7,3463.1,2.88754]
[1721665343069,6.48189822,3463.7,3463.1,2.88754]
[1721665343246,3.59480822,3463.7,3463.2,2.88748]
[1721665343447,2.3813,3463.7,3463.3,2.88737]
[1721665343646,1.21350822,3463.9,3463.4,2.88732]
[1721665343851,3.59480822,3464.0,3463.5,2.88724]
[1721665344051,3.59480822,3464.0,3463.4,2.88731]
[1721665344052,6.48167822,3464.0,3463.4,2.88731]
[1721665344252,1.21350822,3463.9,3463.3,2.88737]
[1721665344491,6.48167822,3464.0,3463.4,2.88729]
[1721665344685,2.88696,3463.9,3463.4,2.88729]
[1721665345277,2.3813,3464.0,3463.3,2.88741]
[1721665345599,3.66650822,3464.1,3462.9,0.288778]
[1721665345600,5.17784,3463.6,3462.9,2.88767]
[1721665345887,5.17784,3463.6,3463.1,2.88758]
[1721665346053,1.21350822,3463.7,3463.1,2.88752]
[1721665346249,2.88704,3463.8,3463.1,2.88752]
[1721665346250,2.88704,3463.8,3463.2,2.88746]
[1721665346455,2.88735,3463.4,3462.7,2.88784]
[1721665346650,2.88742,3463.3,3462.8,3.0]
[1721665346853,2.88738,3463.4,3462.8,5.88782]
[1721665347089,2.88738,3463.4,3462.5,2.88805]
[1721665347090,2.453,3463.3,3462.5,2.88805]
[1721665347289,5.29256,3463.2,3462.5,2.88803]
[1721665347502,5.29256,3463.2,3462.6,2.88799]
[1721665347656,0.15009111,3463.1,3462.6,2.88799]
[1721665347852,0.15009111,3463.1,3462.7,2.88791]
[1721665348251,0.15009111,3463.1,3462.6,2.88797]
[1721665348450,0.15009111,3463.1,3462.5,2.888]
[1721665348689,0.15009111,3463.1,3462.1,2.88839]
[1721665348690,0.15009111,3463.1,3462.7,2.88785]
[1721665348901,0.15009111,3463.1,3462.8,2.88783]
[1721665349251,0.15009111,3463.1,3462.0,3.60570473]
[1721665349252,0.15009111,3463.1,3463.0,2.88766]
[1721665349555,1.21350822,3463.5,3463.0,2.88766]
[1721665349752,1.21350822,3463.5,3462.8,5.77553]
[1721665349753,0.15004595,3463.1,3462.8,5.77553]
[1721665349959,4.10075822,3463.5,3462.9,2.8877]
[1721665350221,0.15004595,3463.0,3462.6,2.88795]
[1721665350427,2.88755,3463.2,3462.6,2.88795]
[1721665350595,0.15004595,3462.9,3462.7,2.88786]
[1721665350919,5.34046,3463.3,3462.7,2.88786]
[1721665351244,5.42252415,3463.5,3462.8,2.88777]
[1721665351383,0.15003522,3463.2,3462.8,2.88777]
[1721665351586,4.20901593,3463.5,3462.9,2.88767]
[1721665351788,0.15002124,3463.1,3462.9,2.88767]
[1721665351985,4.20901593,3463.5,3462.9,2.88767]
[1721665352227,0.15000617,3463.0,3462.9,2.88767]
[1721665352439,2.88719,3463.6,3463.0,2.88764]
[1721665352723,2.88727,3463.5,3462.8,2.88777]
[1721665353096,2.88739,3463.4,3462.8,2.88777]
[1721665353518,2.3012,3463.1,3462.6,2.88794]
[1721665353704,2.3012,3463.1,3462.8,2.88783]
[1721665355507,2.3012,3463.1,3462.6,2.88791]
[1721665355704,5.18882,3463.1,3462.6,2.88799]
[1721665357089,2.88767,3463.0,3462.4,2.88812]
[1721665357313,2.88767,3463.0,3462.1,2.4728]
[1721665357516,2.3012,3463.1,3462.4,2.8881]
[1721665357517,2.88779,3462.9,3462.4,2.8881]
[1721665357723,2.88768,3463.0,3462.5,2.88808]
[1721665359244,2.88775,3462.9,3462.2,3.78503547]
[1721665359913,2.361,3462.6,3462.1,2.88841]
[1721665360103,2.361,3462.6,3462.2,3.0]
[1721665360435,2.361,3462.6,3462.2,5.88829]
[1721665360596,5.31226,3462.9,3462.2,5.88829]
[1721665360796,5.31226,3462.9,3462.3,2.88824]
[1721665361021,2.88784,3462.8,3462.3,2.88824]
[1721665361533,2.4245,3462.9,3462.3,3.765845]
[1721665361742,5.23445,3463.2,3462.5,2.88803]
[1721665362029,6.44765822,3463.5,3462.8,2.88779]
[1721665362338,6.44765822,3463.5,3462.9,0.288779]
[1721665362339,5.23415,3463.5,3462.9,0.288779]
[1721665362707,0.14470366,3463.4,3462.9,0.288779]
[1721665363187,0.14470366,3463.4,3463.0,2.88761]
[1721665363535,0.14470366,3463.4,3463.3,2.88741]
[1721665363690,0.14470366,3463.4,3463.3,3.464896]
[1721665363896,2.88692,3463.9,3463.4,2.88732]
[1721665364291,2.88692,3463.9,3463.3,0.577486]
[1721665364489,2.88708,3463.7,3463.1,2.88758]
[1721665364690,2.88711,3463.7,3463.0,3.0]
[1721665364994,2.88722,3463.6,3463.0,3.0]
[1721665365221,2.88722,3463.6,3463.1,2.88756]
[1721665365531,1.21350822,3463.8,3463.1,2.88756]
[1721665366028,2.88714,3463.7,3463.1,2.88752]
[1721665366226,2.88714,3463.7,3463.1,3.7939199]
[1721665366450,2.88721,3463.6,3463.0,5.88765]
[1721665366787,4.10055822,3463.8,3463.1,2.88757]
[1721665367024,4.10055822,3463.8,3463.0,3.0]
[1721665367025,2.88722,3463.6,3463.0,3.0]
[1721665367226,2.88722,3463.6,3462.9,3.288779]
[1721665367391,2.88722,3463.6,3463.0,3.5052759]
[1721665370395,2.88722,3463.6,3463.0,6.3928959]
[1721665370836,5.77445,3463.6,3463.0,0.6176559]
[1721665371037,2.88722,3463.6,3463.0,3.5053059]
[1721665371197,2.88722,3463.6,3463.0,6.3929159]
[1721665371593,2.88722,3463.6,3463.0,3.5052659]
[1721665372736,2.88705,3463.8,3463.1,0.96818249]
[1721665373048,4.10039822,3464.0,3463.3,2.88736]
[1721665373258,1.21350822,3464.0,3463.5,2.88721]
[1721665373407,2.88683,3464.0,3463.5,2.88721]
[1721665374349,2.887,3463.8,3463.3,2.88736]
[1721665375218,2.88708,3463.7,3463.1,2.88751]
[1721665375546,2.88708,3463.7,3463.1,5.77504]
[1721665375753,2.88708,3463.7,3463.2,2.88749]
[1721665376813,5.77423,3463.7,3463.1,2.88751]
[1721665377016,2.4518,3463.6,3463.1,2.88751]
[1721665377541,0.14489083,3463.5,3463.1,5.77504]
[1721665377852,0.14489083,3463.5,3463.1,2.88751]
[1721665379058,0.14489083,3463.5,3462.9,2.88771]
[1721665379226,2.88742,3463.3,3462.8,5.88777]
[1721665379427,0.14489083,3463.5,3462.6,2.88794]
[1721665379428,0.40455991,3463.5,3462.6,2.88794]
[1721665379644,3.03237362,3463.2,3462.6,2.88793]
[1721665379821,4.10092822,3463.3,3462.7,2.88787]
[1721665380020,0.14484779,3463.1,3462.7,2.88787]
[1721665380254,2.8875,3463.2,3462.7,2.88787]
[1721665380461,0.14484779,3463.0,3462.7,2.88787]
[1721665380646,0.14480584,3463.1,3462.7,2.88787]
[1721665380843,0.14477465,3462.9,3462.7,2.88787]
[1721665381044,2.8875,3463.2,3462.7,2.88787]
[1721665381245,0.14477465,3462.8,3462.5,2.88804]
[1721665381486,2.88759,3463.1,3462.5,2.88804]
[1721665381656,0.14477465,3462.7,3462.5,2.88804]
[1721665381856,2.8875,3463.2,3462.6,2.88799]
[1721665382467,2.88742,3463.3,3462.7,2.8879]
[1721665382643,2.88742,3463.3,3462.7,2.88787]
[1721665383056,2.88742,3463.3,3462.7,2.88786]
[1721665384035,2.88738,3463.4,3462.7,2.88786]
[1721665384228,1.4731773,3463.5,3462.9,2.88771]
[1721665384428,2.88737,3463.4,3462.9,2.88771]
[1721665384676,4.3604273,3463.5,3462.9,2.88771]
[1721665385448,4.3604273,3463.5,3462.9,2.8877]
[1721665386245,2.88734,3463.4,3462.9,2.8877]
[1721665386448,2.88734,3463.4,3462.8,2.8878]
[1721665386677,1.21350822,3463.6,3463.3,2.88737]
[1721665386878,1.21350822,3463.7,3463.3,2.88737]
[1721665387238,2.4695,3464.0,3463.5,2.88724]
[1721665387239,1.21350822,3463.8,3463.5,2.88724]
[1721665387473,3.98123295,3464.0,3463.6,2.8871]
[1721665387474,3.68300822,3464.0,3463.6,2.8871]
[1721665387658,3.68300822,3464.0,3463.5,2.88725]
[1721665387862,2.4695,3464.0,3463.5,2.8872]
[1721665388194,2.4695,3464.0,3463.7,2.88708]
[1721665388478,2.4695,3464.0,3463.5,2.88718]
[1721665388883,6.56983822,3464.0,3463.5,2.88718]
[1721665389043,5.35633,3464.0,3463.4,2.88733]
[1721665389387,7.66671416,3464.0,3463.3,2.88741]
[1721665389552,2.88704,3463.8,3463.3,2.88741]
[1721665390479,2.88692,3463.9,3463.4,2.88728]
[1721665391342,2.887,3463.8,3463.3,2.88741]
[1721665391543,2.88721,3463.6,3463.0,2.88762]
[1721665391750,2.88717,3463.6,3462.9,2.88771]
[1721665392045,2.88746,3463.3,3462.7,2.8879]
[1721665392352,2.88746,3463.3,3462.7,2.88786]
[1721665392551,2.88746,3463.3,3462.7,2.88785]
[1721665392761,0.14481444,3463.2,3462.9,2.88771]
[1721665392943,2.389,3463.4,3462.9,2.88768]
[1721665393261,0.14481444,3463.1,3462.9,2.88768]
[1721665393579,2.389,3463.4,3462.9,2.88768]
[1721665393580,5.27634,3463.4,3462.9,2.88768]
[1721665393787,0.14478971,3463.0,3462.8,2.88777]
[1721665393954,1.21350822,3463.6,3462.9,2.88775]
[1721665394138,1.21350822,3463.6,3462.7,2.88786]
[1721665394479,4.10075822,3463.6,3462.6,2.88792]
[1721665394649,0.14478971,3463.5,3463.1,2.88754]
[1721665395053,1.21350822,3463.6,3463.1,2.88754]
[1721665395281,0.14478434,3463.4,3463.3,2.88739]
[1721665395450,1.21350822,3463.8,3463.3,2.88739]
[1721665395650,0.14478434,3463.4,3463.3,2.88739]
[1721665395898,1.21350822,3463.8,3463.4,2.88732]
[1721665396197,1.21350822,3463.9,3463.5,2.8872]
[1721665396514,3.69300822,3464.0,3463.5,2.8872]
[1721665397193,6.57985822,3464.0,3463.5,2.8872]
[1721665397855,2.88692,3463.9,3463.4,2.88733]
[1721665398193,2.88692,3463.9,3463.3,2.88741]
[1721665398194,4.10047822,3463.9,3463.3,2.88741]
[1721665398494,2.88692,3463.9,3463.3,2.88741]
[1721665398793,2.88692,3463.9,3463.4,2.88731]
[1721665399386,2.88692,3463.9,3463.3,2.88741]
[1721665399592,2.88692,3463.9,3463.4,2.88733]
[1721665400497,2.88692,3463.9,3463.2,2.88748]
[1721665401291,2.88692,3463.9,3463.4,2.88729]
[1721665402698,5.77408,3463.8,3463.2,2.88747]
[1721665402914,2.88701,3463.8,3463.2,2.88747]
[1721665403499,2.88701,3463.8,3463.1,2.8875]
[1721665403874,6.57987822,3464.0,3463.3,2.88736]
[1721665404078,6.57987822,3464.0,3463.4,2.88729]
[1721665406990,2.88692,3463.9,3463.4,2.88729]
[1721665407180,2.88702,3463.8,3463.3,2.88741]
[1721665407592,0.14482198,3463.7,3463.4,2.88732]
[1721665407791,1.21350822,3463.9,3463.4,2.88732]
[1721665408128,0.14482198,3463.6,3463.4,2.88732]
[1721665408423,0.14482198,3463.5,3463.3,5.77476]
[1721665408711,4.10042822,3463.9,3463.3,2.88735]
[1721665408919,0.14482198,3463.4,3463.3,2.88735]
[1721665409128,4.10042822,3463.9,3463.3,3.464837]
[1721665409292,0.14482198,3463.4,3463.3,2.88735]
[1721665409620,1.21350822,3463.9,3463.4,2.88726]
[1721665410114,1.21350822,3463.9,3463.6,2.88713]
[1721665410910,1.21350822,3464.0,3463.6,2.88713]
[1721665411584,1.21350822,3464.0,3463.6,2.88712]
[1721665411806,1.21350822,3464.0,3463.6,5.77424]
[1721665412014,1.21350822,3464.0,3463.6,2.88712]
[1721665413800,1.21350822,3464.0,3463.6,0.821069]
[1721665414111,1.21350822,3464.3,3463.9,2.88685]
[1721665414312,1.50989055,3464.4,3463.9,2.88685]
[1721665414313,1.21350822,3464.4,3463.9,5.77371]
[1721665414514,4.09992822,3464.5,3463.9,2.88685]
[1721665414715,4.09992822,3464.5,3464.0,2.88683]
[1721665415017,2.8865,3464.4,3463.9,2.8869]
[1721665415211,4.10000822,3464.4,3463.9,2.8869]
[1721665416046,2.88679,3464.1,3463.6,2.88715]
[1721665416354,2.88679,3464.1,3463.5,2.88719]
[1721665416355,6.56039822,3464.1,3463.5,2.88719]
[1721665416505,5.34689,3464.1,3463.5,2.88719]
[1721665416707,3.26716902,3464.1,3463.5,2.88719]
[1721665416931,3.26716902,3464.1,3463.7,2.88708]
[1721665417522,6.15391902,3464.1,3463.7,2.88708]
[1721665417839,6.15391902,3464.1,3463.6,2.88716]
[1721665418607,3.26716902,3464.1,3463.6,2.88712]
[1721665419531,3.26716902,3464.1,3463.6,2.88711]
[1721665419532,6.15393902,3464.1,3463.6,2.88711]
[1721665419740,3.26716902,3464.1,3463.7,2.88708]
[1721665422110,6.15393902,3464.1,3463.2,2.4078]
[1721665422325,1.022,3463.8,3463.6,2.8871]
[1721665422734,1.022,3463.8,3463.7,2.88708]
[1721665424543,1.022,3463.8,3463.6,2.88716]
[1721665425449,1.022,3463.8,3463.6,2.88712]
[1721665426026,1.022,3463.8,3463.7,2.88708]
[1721665427315,1.022,3463.8,3463.6,2.88716]
[1721665427637,1.022,3463.8,3463.7,2.88708]
[1721665428957,1.022,3463.8,3463.2,3.237336]
[1721665429255,1.022,3463.8,3463.1,2.88756]
[1721665429256,1.022,3463.3,3462.5,5.38546]
[1721665429560,1.022,3463.1,3463.0,2.88766]
[1721665431757,1.16693919,3463.1,3463.0,2.88766]
[1721665432458,1.16693919,3463.1,3462.8,2.88777]
[1721665432663,1.16693919,3463.1,3462.9,5.88775]
[1721665433372,1.16693919,3463.1,3462.9,3.0]
[1721665433671,1.16693919,3463.1,3462.8,3.0]
[1721665433866,1.16693919,3463.1,3462.8,5.88778]
[1721665434554,1.16693919,3463.1,3462.8,3.0]
[1721665434744,1.16693919,3463.1,3462.8,2.88779]
[1721665434925,1.16693919,3463.1,3462.9,3.0]
[1721665435328,1.16693919,3463.1,3462.9,5.88773]
[1721665435781,1.16693919,3463.1,3462.6,2.88795]
[1721665436065,1.022,3462.8,3462.6,2.88795]
[1721665436268,1.022,3462.8,3462.5,2.88806]
[1721665436468,1.022,3462.6,3462.5,2.88806]
[1721665437041,1.16688866,3462.6,3462.5,2.88806]
[1721665437459,1.16688866,3462.6,3462.3,2.88824]
[1721665437641,1.16688866,3462.6,3461.8,0.90920713]
[1721665437642,1.022,3462.4,3462.2,2.88829]
[1721665437856,1.022,3462.3,3462.2,2.88829]
[1721665438091,1.1667865,3462.3,3462.2,2.88829]
[1721665440246,1.1667865,3462.3,3461.9,2.88858]
[1721665440447,1.022,3462.0,3461.6,10.28878]
[1721665440649,1.022,3461.9,3461.7,2.88875]
[1721665440893,1.1667209,3461.9,3461.7,2.88875]
[1721665441069,0.1447209,3461.9,3461.8,2.88867]
[1721665441270,1.022,3462.1,3461.8,2.88867]
[1721665441448,1.16668862,3461.9,3461.6,2.8888]
[1721665441663,1.022,3461.9,3461.6,2.88876]
[1721665441982,1.022,3462.1,3461.9,2.88858]
[1721665442183,8.22768,3462.5,3461.9,2.88858]
[1721665442383,5.33954,3462.5,3461.9,2.88858]
[1721665442769,5.33954,3462.5,3461.8,2.88866]
[1721665442969,2.88829,3462.3,3461.8,2.88866]
[1721665443517,2.88836,3462.2,3461.6,2.88876]
[1721665443673,2.88836,3462.2,3461.7,2.88871]
[1721665443871,2.88824,3462.4,3461.7,2.88871]
[1721665444085,2.88824,3462.4,3461.8,2.88866]
[1721665444617,2.88822,3462.4,3461.8,2.88866]
[1721665444819,3.667682,3462.4,3461.8,2.88866]
[1721665445247,2.88829,3462.3,3461.8,2.88866]
[1721665445957,0.779462,3462.4,3461.8,2.88866]
[1721665445958,3.667632,3462.4,3461.8,2.8886]
[1721665446250,2.88825,3462.3,3461.8,2.8886]
[1721665447212,2.3093,3462.2,3461.6,2.88879]
[1721665447438,2.3093,3462.2,3461.4,2.88897]
[1721665447439,2.9070012,3462.2,3461.4,2.88897]
[1721665447643,2.455,3461.9,3461.3,2.88904]
[1721665447859,2.455,3461.9,3461.3,2.88903]
[1721665448152,5.34359,3461.9,3461.3,2.88903]
[1721665448316,2.9070012,3462.2,3461.3,2.889]
[1721665448518,2.88847,3462.1,3461.5,2.88887]
[1721665448718,2.9070012,3462.2,3460.8,2.90623645]
[1721665448944,2.88846,3462.1,3461.6,2.88876]
[1721665449118,2.88846,3462.1,3461.5,2.88891]
[1721665449712,2.88846,3462.1,3461.6,2.88883]
[1721665450530,2.8885,3462.0,3461.4,5.77788]
[1721665450731,2.88842,3462.1,3461.5,2.88891]
[1721665451780,2.88842,3462.1,3461.4,2.88892]
[1721665451781,2.88842,3462.1,3461.6,2.88882]
[1721665452429,0.14457777,3462.0,3461.6,2.88882]
[1721665453545,0.14457777,3462.0,3461.4,2.88892]
[1721665453761,0.14457777,3462.0,3461.6,2.88879]
[1721665454774,0.14457777,3462.0,3461.6,2.88878]
[1721665455126,5.19767,3462.2,3461.7,2.88874]
[1721665455332,0.14457777,3461.9,3461.7,2.88874]
[1721665455531,5.19767,3462.2,3461.6,2.88878]
[1721665455751,0.14457777,3461.8,3461.6,2.88878]
[1721665455969,5.19767,3462.2,3461.6,2.88878]
[1721665456168,0.14457777,3461.7,3461.6,2.88878]
[1721665456360,2.88842,3462.1,3461.6,2.88878]
[1721665456902,0.14457777,3462.0,3461.6,2.88878]
[1721665457774,5.19765,3462.2,3461.6,2.88878]
[1721665458107,8.08604,3462.2,3461.6,2.88878]
[1721665458403,3.03299777,3462.1,3461.6,2.88878]
[1721665458797,0.14457777,3462.1,3461.6,2.88878]
[1721665459397,3.03299777,3462.1,3461.6,2.88878]
[1721665459771,0.14457777,3462.1,3461.2,2.88915]
[1721665459968,0.14457777,3462.1,3461.4,2.307]
[1721665460174,0.14457777,3462.1,3462.0,2.8885]
[1721665460375,5.23822,3462.5,3461.8,2.88867]
[1721665460583,0.14454225,3462.1,3461.6,2.88878]
[1721665460801,2.88829,3462.3,3461.8,2.88862]
[1721665461194,2.56634225,3462.2,3461.6,2.88875]
[1721665461394,2.56634225,3462.2,3461.8,2.88866]
[1721665461595,2.56634225,3462.2,3461.7,2.88875]
[1721665462000,5.45468225,3462.2,3461.6,2.88875]
[1721665462194,5.45468225,3462.2,3461.6,5.77753]
[1721665462395,5.45468225,3462.2,3461.7,2.88874]
[1721665463571,2.56634225,3462.2,3461.8,2.88865]
[1721665463777,2.56634225,3462.2,3461.6,2.88875]
[1721665464011,5.45468225,3462.2,3461.6,2.88875]
[1721665464349,5.45468225,3462.2,3461.7,2.88874]
[1721665464489,2.56634225,3462.2,3461.7,2.88874]
[1721665465203,2.56634225,3462.2,3461.8,2.88866]
[1721665465737,5.45468225,3462.2,3461.7,2.88874]
[1721665466297,1.023,3462.0,3461.7,2.88874]
[1721665466736,1.023,3461.8,3461.7,2.88874]
[1721665466947,1.023,3461.8,3461.6,2.88882]
[1721665467250,1.023,3461.8,3461.4,2.88894]
[1721665467405,0.1445552,3461.7,3461.4,2.88894]
[1721665467745,1.023,3461.6,3461.4,2.88894]
[1721665467919,1.16755196,3461.6,3461.5,2.88892]
[1721665468248,1.16755196,3461.6,3461.3,2.88907]
[1721665468403,1.023,3461.4,3461.3,2.88907]
[1721665468845,1.023,3461.6,3461.4,2.88897]
[1721665469143,1.023,3461.6,3461.3,2.88908]
[1721665470128,1.023,3461.6,3461.4,2.88899]
[1721665470309,2.88859,3461.9,3461.4,2.88899]
[1721665471328,2.88868,3461.8,3461.3,2.88907]
[1721665471639,2.2885,3462.0,3461.4,2.88893]
[1721665471870,5.17701,3462.0,3461.4,2.88895]
[1721665472009,5.17701,3462.0,3461.4,5.7779]
[1721665472207,2.88858,3461.9,3461.4,2.88895]
[1721665472821,5.17705,3462.0,3461.4,2.88895]
[1721665473050,8.06563,3462.0,3461.4,2.88895]
[1721665473451,5.17705,3462.0,3461.4,2.88895]
[1721665474055,8.06563,3462.0,3461.4,2.88895]
[1721665474220,2.8886,3461.9,3461.4,2.88895]
[1721665474836,2.2885,3462.0,3461.4,2.88895]
[1721665475067,3.051697,3462.0,3460.9,1.86958665]
[1721665475365,3.051697,3462.0,3461.3,2.88908]
[1721665476067,3.051697,3462.0,3461.5,2.88891]
[1721665476521,3.051697,3462.0,3461.7,2.88871]
[1721665477136,2.2885,3462.0,3461.7,2.8887]
[1721665477376,2.2885,3462.0,3461.8,2.88864]
[1721665477573,4.7872,3462.3,3461.8,2.88864]
[1721665477872,2.3322,3462.3,3462.0,2.88844]
[1721665480495,3.143049,3462.3,3461.8,2.88859]
[1721665480672,3.143049,3462.3,3461.9,2.88855]
[1721665481284,2.3322,3462.3,3461.9,2.88855]
[1721665481591,2.3322,3462.3,3462.0,2.88844]
[1721665482508,0.14454225,3462.2,3462.0,2.88844]
[1721665482668,2.3322,3462.3,3462.0,2.88844]
[1721665483083,0.14454225,3462.2,3462.0,2.88844]
[1721665483411,2.3322,3462.3,3462.0,2.88844]
[1721665483583,0.14454765,3462.1,3462.0,2.88844]
[1721665484120,2.3322,3462.3,3462.0,2.88844]
[1721665484407,3.41490015,3462.3,3461.9,2.88858]
[1721665484611,0.14454765,3462.2,3461.9,2.88858]
[1721665484902,4.62334256,3462.3,3461.9,2.88858]
[1721665485096,0.14454765,3462.1,3461.9,2.88858]
[1721665485299,4.62334256,3462.3,3461.9,2.88858]
[1721665485300,3.54064241,3462.3,3461.9,2.88858]
[1721665485501,0.14454765,3462.0,3461.9,2.88858]
[1721665485885,3.54064241,3462.3,3461.9,2.88856]
[1721665486093,0.14454765,3462.0,3461.9,2.88856]
[1721665486306,3.54064241,3462.3,3461.9,2.88856]
[1721665486582,0.14453905,3462.0,3461.9,2.88856]
[1721665486916,3.54064241,3462.3,3462.0,2.88849]
[1721665488132,3.54064241,3462.3,3461.9,2.88857]
[1721665490134,3.54064241,3462.3,3462.0,2.88849]
[1721665491093,1.20844241,3462.2,3462.0,2.88849]
[1721665491297,3.54064241,3462.3,3462.0,2.88849]
[1721665492317,1.023,3462.1,3462.0,2.88849]
[1721665493152,1.023,3462.1,3461.9,2.88857]
[1721665493313,1.20844241,3462.2,3461.9,2.88857]
[1721665493314,1.023,3462.0,3461.9,2.88857]
[1721665494216,1.023,3462.0,3461.8,2.88863]
[1721665494436,1.023,3461.9,3461.7,2.88873]
[1721665496061,1.023,3461.9,3461.7,2.88869]
[1721665497447,1.023,3461.9,3461.8,2.88867]
[1721665498036,1.023,3461.9,3461.7,2.88874]
[1721665498264,1.023,3461.8,3461.7,2.88874]
[1721665503950,1.023,3461.8,3461.6,2.88883]
[1721665504575,1.023,3461.8,3461.7,2.88875]
[1721665506060,1.023,3461.8,3461.6,2.88883]
[1721665506862,1.023,3461.8,3461.6,2.88878]
[1721665507599,2.3687,3461.7,3461.2,2.88911]
[1721665507783,1.023,3461.5,3461.2,2.88911]
[1721665508187,1.023,3461.3,3460.9,1.31958665]
[1721665508482,5.25745,3461.7,3461.0,2.88925]
[1721665508483,4.09731241,3461.6,3461.0,2.88925]
[1721665508665,2.88887,3461.6,3461.1,2.88924]
[1721665508993,3.57714241,3461.7,3460.6,0.60613809]
[1721665509295,2.3687,3461.7,3461.4,2.88896]
[1721665509457,1.023,3461.5,3461.4,2.88896]
[1721665509956,1.023,3461.8,3461.7,2.8887]
[1721665510552,4.59024241,3462.0,3461.8,2.88866]
[1721665510752,1.023,3462.0,3461.8,2.88866]
[1721665510983,1.023,3462.0,3461.8,2.8886]
[1721665511196,1.023,3462.0,3461.9,2.88858]
[1721665511398,1.023,3462.0,3461.8,2.88866]
[1721665512034,1.023,3462.0,3461.9,2.88858]
[1721665512586,1.16746584,3462.0,3461.9,2.88858]
[1721665515197,1.16746584,3462.0,3461.8,2.88866]
[1721665515701,1.16746584,3462.0,3461.8,2.88861]
[1721665518497,1.16746584,3462.0,3461.3,5.15466]
[1721665518809,1.023,3461.8,3461.7,5.7775]
[1721665519223,1.16750458,3461.8,3461.7,5.7775]
[1721665522411,1.16750458,3461.8,3461.7,2.88875]
[1721665522847,1.16750458,3461.8,3461.7,5.7775]
[1721665526033,1.16750458,3461.8,3461.7,2.88875]
[1721665526547,1.16750458,3461.8,3461.6,2.88883]
[1721665526876,1.16750458,3461.8,3461.3,2.889]
[1721665526877,1.023,3461.7,3461.3,2.889]
[1721665527144,1.023,3461.4,3461.1,2.88919]
[1721665527351,1.023,3461.4,3461.3,2.88908]
[1721665528246,1.023,3461.4,3461.1,2.88924]
[1721665528644,1.023,3461.2,3461.1,2.88924]
[1721665529408,3.4658,3461.2,3460.7,1.04430238]
[1721665529755,1.023,3460.9,3460.8,2.8895]
[1721665530960,1.023,3460.9,3460.8,5.779]
[1721665531319,2.4428,3461.2,3460.8,5.779]
[1721665531320,1.023,3461.1,3460.9,2.88935]
[1721665531912,1.023,3461.1,3461.0,2.88933]
[1721665532341,1.023,3461.1,3460.9,2.88942]
[1721665533463,1.023,3461.1,3460.6,2.3538]
[1721665533778,1.023,3460.7,3460.3,3.0]
[1721665533979,2.3446,3460.9,3460.2,3.0]
[1721665533980,1.023,3460.5,3460.2,3.0]
[1721665534278,5.23402,3460.9,3460.2,2.88994]
[1721665534279,1.023,3460.3,3460.2,2.88994]
[1721665534499,2.3446,3460.9,3459.9,2.89022]
[1721665534697,1.023,3460.8,3460.4,2.88976]
[1721665534900,1.023,3460.8,3460.6,2.88962]
[1721665535759,1.023,3460.8,3460.6,2.88961]
[1721665536003,1.023,3460.8,3460.6,2.8896]
[1721665537053,1.023,3460.8,3460.4,2.88977]
[1721665537161,1.023,3460.5,3460.4,2.88977]
[1721665538400,1.023,3460.5,3460.2,5.77989]
[1721665538602,1.023,3460.5,3460.0,3.176161]
[1721665538603,1.023,3460.5,3460.0,3.708881]
[1721665538903,2.3809,3460.7,3460.1,2.89004]
[1721665538904,1.023,3460.3,3460.1,2.89004]
[1721665539270,1.023,3460.3,3459.9,2.89019]
[1721665539457,1.023,3460.3,3460.0,5.89015]
[1721665539665,1.023,3460.3,3460.0,8.78028]
[1721665539897,1.023,3460.3,3460.0,5.89013]
[1721665540387,1.023,3460.3,3460.0,8.78025]
[1721665540591,1.023,3460.3,3460.0,5.89012]
[1721665541097,1.023,3460.3,3460.0,5.89011]
[1721665541698,1.023,3460.1,3460.0,5.89011]
[1721665542628,1.16722357,3460.1,3460.0,5.89011]
[1721665542910,0.14422357,3460.1,3460.0,5.89011]
[1721665543297,1.023,3460.1,3459.8,2.89027]
[1721665543603,0.1442171,3460.0,3459.9,2.89021]
[1721665544016,1.023,3460.3,3460.0,2.89017]
[1721665545106,1.023,3460.3,3459.8,2.89027]
[1721665545485,1.023,3460.3,3459.8,5.78055]